[Event "CCT Chessable Masters D-III 2024"]
[Site "Online"]
[Date "2024.02.05"]
[Round "5"]
[White "Sarana, Alexey"]
[Black "Grischuk, Alexander"]
[Result "1-0"]
[ECO "D17"]
[WhiteElo "2695"]
[BlackElo "2732"]
[Annotator "RC"]
[PlyCount "131"]
[EventDate "2024.01.12"]
[EventType "k.o."]
[EventCountry "NET"]
[SourceTitle "playchess.com"]
[Source "ChessBase"]
[SourceQuality "1"]
[TimeControl "600+2"]

1. d4 {[%emt 0:00:02]} d5 {[%emt 0:00:03]} 2. c4 {[%emt 0:00:01]} c6 {[%emt 0:00:01]} 3. Nf3 {[%emt 0:00:01]} Nf6 {[%emt 0:00:01]} 4. Nc3 {[%emt 0:00:01]} dxc4 {[%emt 0:00:01]} 5. a4 {[%emt 0:00:01]} Bf5 {[%emt 0:00:01]} 6. Ne5 {[%emt 0:00:01]} e6 {[%emt 0:00:01]} 7. g3 {[%emt 0:00:18]} Bb4 {[%emt 0:01:36]} 8. Bg2 {[%emt 0:00:04]} Nbd7 {[%emt 0:01:40]} 9. Nxc4 {[%emt 0:00:04]} Nb6 {[%emt 0:00:07]} 10. Ne5 {[%emt 0:00:51]} a5 {[%emt 0:00:12]} 11. O-O {[%emt 0:00:01]} O-O {[%emt 0:00:02]} 12. Bg5 {[%emt 0:01:17]} h6 {[%emt 0:00:11]} 13. Bxf6 {[%emt 0:00:11]} Qxf6 {[%emt 0:00:03]} 14. e4 {[%emt 0:00:01]} Bh7 {[%emt 0:00:04]} 15. Na2 {[%emt 0:00:14]} Rfd8 {[%emt 0:01:11]} 16. Nxb4 {[%emt 0:00:16]} axb4 {[%emt 0:00:00]} 17. a5 {[%emt 0:00:01]} Nd7 {[%emt 0:00:05]} 18. Nc4 {[%emt 0:01:38]} e5 {[%emt 0:00:16]} 19. Qb3 {[%emt 0:01:01]} exd4 {[%emt 0:01:22]} 20. Qxb4 {[%emt 0:00:01]} Qe6 {[%emt 0:01:39]} 21. b3 {[%emt 0:00:01]} Ra7 {[%emt 0:00:08]} 22. Rfe1 {[%emt 0:00:24]} f6 {[%emt 0:00:34]} 23. f4 {[%emt 0:00:05]} Kh8 {[%emt 0:00:07]} 24. e5 {[%emt 0:00:21]} Bg8 {[%emt 0:00:31]} 25. Rad1 {[%emt 0:00:38]} fxe5 {[%emt 0:00:01]} 26. fxe5 {[%emt 0:00:01]} c5 {[%emt 0:00:46]} 27. Qb5 {[%emt 0:00:01]} Qa6 {[%emt 0:00:01]} 28. Qxa6 {[%emt 0:00:33]} bxa6 {[%emt 0:00:00]} 29. e6 {[%emt 0:00:01]} Nf6 {[%emt 0:00:01]} 30. Re5 {[%emt 0:00:00]} Re7 {[%emt 0:00:12]} 31. Rde1 {[%emt 0:00:02]} d3 {[%emt 0:00:01]} 32. Bh3 {[%emt 0:00:06]} g6 {[%emt 0:00:05]} 33. Rxc5 {[%emt 0:00:26]} d2 {[%emt 0:00:01]} 34. Rd1 {[%emt 0:00:00]} Bxe6 {[%emt 0:00:00]} 35. Bxe6 {[%emt 0:00:03]} Rxe6 {[%emt 0:00:00]} 36. Rxd2 {[%emt 0:00:00]} Rxd2 {[%emt 0:00:07]} 37. Nxd2 {[%emt 0:00:00]} Re2 {[%emt 0:00:01]} 38. Nf3 {[%emt 0:00:26]} Rb2 {[%emt 0:00:03]} 39. Rc6 {[%emt 0:00:07]} Kg7 {[%emt 0:00:02]} 40. Nd4 {[%emt 0:00:00]} Ng4 {[%emt 0:00:02]} 41. Rxa6 {[%emt 0:00:03]} Rxh2 {[%emt 0:00:02]} 42. Ra7+ {[%emt 0:00:12]} Kf6 {[%emt 0:00:01]} 43. Ra6+ {[%emt 0:00:01]} Kf7 {[%emt 0:00:02]} 44. Rb6 {[%emt 0:00:24]} Ra2 {[%emt 0:00:01]} 45. a6 {[%emt 0:00:01]} Ne3 {[%emt 0:00:02]} 46. b4 {[%emt 0:00:11]} Nd5 {[%emt 0:00:01]} 47. Rb5 {[%emt 0:00:15]} Nxb4 {[%emt 0:00:05]} 48. Rxb4 {[%emt 0:00:00]} Rxa6 {[%emt 0:00:00]} 49. Kf2 {[%emt 0:00:01]} Ra2+ {[%emt 0:00:02]} 50. Kf3 {[%emt 0:00:01]} Ra3+ {[%emt 0:00:01]} 51. Rb3 {[%emt 0:00:09]} Ra6 {[%emt 0:00:03]} 52. Rc3 {[%emt 0:00:02]} Ra7 {[%emt 0:00:02]} 53. Nb5 {[%emt 0:00:02]} Ra6 {[%emt 0:00:03]} 54. Nd4 {[%emt 0:00:07]} Ra7 {[%emt 0:00:01]} 55. Ke4 {[%emt 0:00:00]} Kf6 {[%emt 0:00:04]} 56. Kf4 {[%emt 0:00:03]} Ra4 {[%emt 0:00:02]} 57. Rc6+ {[%emt 0:00:01]} Kf7 {[%emt 0:00:00]} 58. Ke5 {[%emt 0:00:07]} Ra5+ {[%emt 0:00:02]} 59. Ke4 {[%emt 0:00:01]} Ra4 {[%emt 0:00:01]} 60. Rb6 {[%emt 0:00:06]} Rc4 {[%emt 0:00:03]} 61. Kd3 {[%emt 0:00:10]} Ra4 {[%emt 0:00:01]} 62. Nf3 {[%emt 0:00:02]} Ra3+ {[%emt 0:00:02]} 63. Ke4 {[%emt 0:00:01]} Ra4+ {[%emt 0:00:00]} 64. Nd4 {[%emt 0:00:01]} Rc4 {[%emt 0:00:03]} 65. Ra6 {[%emt 0:00:11]} Rc1 {[%emt 0:00:06]} 66. Nf3 {[%emt 0:00:01]} 1-0

[Event "CCT Chessable Masters D-III 2024"]
[Site "Online"]
[Date "2024.02.06"]
[Round "6"]
[White "Grischuk, Alexander"]
[Black "Sarana, Alexey"]
[Result "1-0"]
[ECO "D39"]
[WhiteElo "2732"]
[BlackElo "2695"]
[Annotator "TA"]
[PlyCount "63"]
[EventDate "2024.01.12"]
[EventType "k.o."]
[EventCountry "NET"]
[SourceTitle "playchess.com"]
[Source "ChessBase"]
[SourceQuality "1"]
[TimeControl "600+2"]

{[%evp 16,63,13,18,12,22,34,33,41,29,32,49,86,45,97,93,94,97,167,138,479,472,495,488,483,417,884,833,954,964,1408,0,609,0,1559,1510,1521,1447,1378,1179,1192,1191,1250,1252,1259,1245,29995,29996,29997,29998]} 1. d4 {[%emt 0:00:02]} Nf6 {[%emt 0:00:03]} 2. c4 {[%emt 0:00:05]} e6 {[%emt 0:00:01]} 3. Nf3 {[%emt 0:00:00]} d5 {[%emt 0:00:01]} 4. Nc3 {[%emt 0:00:02]} Bb4 {[%emt 0:00:12]} 5. Bg5 {[%emt 0:00:02]} dxc4 {[%emt 0:00:08]} 6. e4 {[%emt 0:00:02]} c5 {[%emt 0:00:01]} 7. Bxc4 {[%emt 0:00:01]} cxd4 {[%emt 0:00:02]} 8. Nxd4 {[%emt 0:00:02]} Qa5 {[%emt 0:00:08]} 9. Bd2 {[%emt 0:00:05]} (9. Bxf6 {feels hotter.} Bxc3+ 10. bxc3 Qxc3+ 11. Kf1) 9... Qc5 {[%emt 0:00:02][%csl LRc4,LRd4]} 10. Bb5+ {[%emt 0:00:01]} Nbd7 {[%emt 0:00:02]} 11. Nb3 {[%emt 0:00:48]} Qc7 {[%emt 0:00:02] White is slightly better.} 12. Rc1 {[%emt 0:00:56][%cal Oc3d5] [#] And now Nd5! would win.} O-O {[%emt 0:00:02]} 13. O-O {[%emt 0:00:05][%cal Oc3d5]} Bd6 {[%emt 0:00:26]} 14. Kh1 {[%emt 0:00:35]} Qb8 {[%emt 0:00:20]} ({Better is} 14... a6 $14 15. Bxd7 Qxd7 (15... Bxd7 $2 {loses.} 16. Nd5 $18)) 15. f4 $16 {[%emt 0:01:22][%cal Bf2f4,Bf4f5][%mdl 32] e5 would now be deadly.} e5 {[%emt 0:00:02]} 16. f5 {[%emt 0:00:03] White is more active.} a6 {[%emt 0:00:02] [#]} (16... Bb4 $16) 17. Bxd7 $1 $18 {[%emt 0:00:06]} Nxd7 {[%emt 0:00:44][%mdl 8192]} (17... Bxd7 $16 18. Bg5 Ne8) 18. Nd5 {[%emt 0:00:13]} f6 {[%emt 0:01:02]} 19. Na5 {[%emt 0:03:20]} Rf7 {[%emt 0:00:44]} 20. Qg4 {[%emt 0:00:26]} b6 {[%emt 0:00:26]} (20... Nf8 $142 21. Nb6 Bd7) 21. Nc6 {[%emt 0:00:03]} Qb7 {[%emt 0:00:01]} 22. Nd8 {[%emt 0:00:04][%csl LRb7,LRf7] Excellent horsemanship.} Qb8 {[%emt 0:00:04]} 23. Nc6 {[%emt 0:00:03]} (23. Nxf7 $142 Kxf7 24. Qh5+ Kf8 25. Rc3 (25. Qxh7 Bb7 $18)) 23... Qb7 {[%emt 0:00:01]} 24. Nd8 {[%emt 0:00:01]} (24. Qh4 $142) 24... Qb8 $1 {[%emt 0:00:00]} 25. Nxf7 {[%emt 0:00:18]} Kxf7 {[%emt 0:00:00]} 26. Qh5+ {[%emt 0:00:26]} Kg8 {[%emt 0:00:01]} 27. Rf3 {[%emt 0:00:34][%cal Bf1f3,Bf3h3,Bh3h7][%mdl 32] Qe8+ would kill now.} Bb7 {[%emt 0:00:44]} 28. Rh3 {[%emt 0:00:01]} Bxd5 {[%emt 0:01:55]} 29. Qxh7+ {[%emt 0:00:05]} Kf7 {[%emt 0:00:00]} 30. Qg6+ {[%emt 0:00:14]} Kg8 {[%emt 0:00:02]} 31. Rh7 {[%emt 0:00:30][%csl Gh7][%cal Rg6g7]} Bf8 {[%emt 0:00:15]} 32. Qh5 {[%emt 0:00:11] Black got outplayed after the opening.   Weighted Error Value: White=0.70/Black=0.81.  Loses game:     	---       	Black=1      Mistake:       	---       	Black=3      Inaccurate:     	White=1     	Black=1      OK:         	White=4     	Black=4      Best:        	White=4     	---        Strong:       	White=1     	Black=1} 1-0

[Event "CCT Chessable Masters D-III 2024"]
[Site "Online"]
[Date "2024.02.06"]
[Round "6"]
[White "Sarana, Alexey"]
[Black "Grischuk, Alexander"]
[Result "1-0"]
[ECO "D17"]
[WhiteElo "2695"]
[BlackElo "2732"]
[Annotator "TA"]
[PlyCount "105"]
[EventDate "2024.01.12"]
[EventType "k.o."]
[EventCountry "NET"]
[SourceTitle "playchess.com"]
[Source "ChessBase"]
[SourceQuality "1"]
[TimeControl "600+2"]

{[%evp 15,105,25,26,-25,-24,-19,-24,-22,-25,-14,22,20,20,22,48,45,43,38,50,62,53,52,68,86,80,86,91,86,82,79,96,100,114,122,128,121,119,117,120,89,106,100,119,87,100,103,145,147,153,142,178,146,148,149,145,144,150,119,119,118,310,214,319,314,366,362,351,351,334,332,591,579,727,750,829,769,1018,933,1177,1141,1132,695,864,848,1375,1330,1691,657,29984,29985,29997,29998]} 1. d4 {[%emt 0:00:02]} d5 {[%emt 0:00:03]} 2. c4 {[%emt 0:00:01]} c6 {[%emt 0:00:01]} 3. Nc3 {[%emt 0:00:00]} Nf6 {[%emt 0:00:01]} 4. Nf3 {[%emt 0:00:00]} dxc4 {[%emt 0:00:02]} 5. a4 {[%emt 0:00:01]} Bf5 {[%emt 0:00:01]} 6. Ne5 {[%emt 0:00:00]} e6 {[%emt 0:00:01]} 7. f3 {[%emt 0:00:02]} Bb4 {[%emt 0:00:02]} 8. Nxc4 {[%emt 0:00:02]} O-O {[%emt 0:00:02]} 9. h4 {[%emt 0:00:01]} (9. Kf2 $142 $1) 9... c5 $11 {[%emt 0:01:32]} 10. dxc5 {[%emt 0:00:02]} Qxd1+ {[%emt 0:02:08]} 11. Kxd1 {[%emt 0:00:00] Black has an edge.} Rd8+ {[%emt 0:00:02]} 12. Bd2 {[%emt 0:00:01] [#] And now g4 would win.} e5 {[%emt 0:00:38]} 13. e4 {[%emt 0:01:32]} (13. Nxe5 Nbd7 14. Nd3 Nxc5) 13... Be6 {[%emt 0:00:03]} 14. Nxe5 {[%emt 0:00:03][%cal Bc4e5,Be5d3,Bd3f4][%mdl 32]} Bxc5 {[%emt 0:00:19]} 15. Nd3 $36 {[%emt 0:00:26][%mdl 2048] White is pushing.} Be7 {[%emt 0:00:48]} 16. Ke1 {[%emt 0:00:37]} Nc6 {[%emt 0:00:03][%cal Bb8c6,Bc6b4,Bb4d3][%mdl 32] aiming for ...Nh5.} 17. Be3 {[%emt 0:00:01]} Nh5 {[%emt 0:01:25]} 18. Kf2 {[%emt 0:00:39] Prevents Ng3.} Bd6 {[%emt 0:00:01]} 19. Ne2 {[%emt 0:01:13] Prevents Ng3} Bc4 {[%emt 0:01:50]} 20. Ndf4 {[%emt 0:00:52]} Bxe2 {[%emt 0:00:01]} 21. Nxe2 {[%emt 0:00:18]} Nb4 {[%emt 0:00:04] [#]} 22. g4 $1 {[%emt 0:01:10]} Nd3+ {[%emt 0:00:17]} 23. Kg1 {[%emt 0:00:05]} Nhf4 {[%emt 0:00:01]} 24. Nxf4 {[%emt 0:00:18]} Bxf4 {[%emt 0:00:07]} 25. Bxf4 {[%emt 0:00:29]} Nxf4 {[%emt 0:00:00]} 26. Kf2 {[%emt 0:00:01]} h6 {[%emt 0:00:20]} 27. g5 {[%emt 0:00:35]} hxg5 {[%emt 0:00:12]} 28. hxg5 {[%emt 0:00:00]} Rac8 {[%emt 0:00:07] Prevents Bc4} 29. Kg3 {[%emt 0:00:41]} Ne6 {[%emt 0:00:14]} 30. Bh3 {[%emt 0:00:04]} Rc6 {[%emt 0:00:06]} 31. Bxe6 {[%emt 0:00:03]} Rxe6 $16 {[%emt 0:00:00][%mdl 4096] Endgame. KRR-KRR} 32. Rh2 {[%emt 0:00:14]} Kf8 {[%emt 0:00:31]} 33. Rh8+ {[%emt 0:00:19]} Ke7 {[%emt 0:00:01]} 34. Rxd8 {[%emt 0:00:00]} Kxd8 {[%emt 0:00:00] KR-KR} 35. Rd1+ {[%emt 0:00:01]} Ke7 {[%emt 0:00:01]} 36. Rd4 {[%emt 0:00:01]} Rb6 {[%emt 0:00:04] Wards off Rb4} 37. b4 {[%emt 0:00:01]} g6 $2 {[%emt 0:00:02] A mistake that costs the game.} (37... Rc6 $16 {was called for.} 38. Kf4 Rc7) 38. Kf4 {[%emt 0:00:01]} a6 {[%emt 0:00:02]} (38... Rc6 $142 39. Rd5 Ke6) 39. Rc4 $18 {[%emt 0:00:02]} Kd7 {[%emt 0:00:02]} 40. Ke3 {[%emt 0:00:05]} Re6 {[%emt 0:00:01]} 41. Rc5 {[%emt 0:00:04]} Re8 {[%emt 0:00:02]} 42. Kd4 {[%emt 0:00:04]} Rh8 $2 {[%emt 0:00:02]} (42... Re6 43. Rd5+ Kc6) 43. Ke5 {[%emt 0:00:02]} Rh3 {[%emt 0:00:05]} 44. f4 {[%emt 0:00:01]} Rb3 {[%emt 0:00:03]} 45. Rc4 {[%emt 0:00:02]} b5 {[%emt 0:00:03]} 46. Rd4+ {[%emt 0:00:07]} Ke7 {[%emt 0:00:01]} 47. a5 {[%emt 0:00:01]} Re3 {[%emt 0:00:03]} 48. Kd5 {[%emt 0:00:05]} Rc3 {[%emt 0:00:01]} 49. f5 {[%emt 0:00:10]} gxf5 {[%emt 0:00:00]} 50. exf5 {[%emt 0:00:00]} Rg3 {[%emt 0:00:01]} 51. f6+ {[%emt 0:00:06]} (51. Kc6 $142 Rc3+ 52. Kb6) 51... Ke8 {[%emt 0:00:01]} 52. Kc6 {[%emt 0:00:01]} Rxg5 {[%emt 0:00:02]} 53. Kc7 {[%emt 0:00:03] Weighted Error Value: White=0.26 (precise) /Black=0.43.  Loses game:     	---       	Black=1      Mistake:       	---       	Black=2      Inaccurate:     	White=1     	Black=3      OK:         	White=17    	Black=8      Best:        	White=6     	Black=2      Strong:       	White=1     	---} 1-0

[Event "CCT Chessable Masters D-III 2024"]
[Site "Online"]
[Date "2024.02.06"]
[Round "7"]
[White "Grischuk, Alexander"]
[Black "Sarana, Alexey"]
[Result "0-1"]
[ECO "D41"]
[WhiteElo "2732"]
[BlackElo "2695"]
[Annotator "RC"]
[PlyCount "168"]
[EventDate "2024.01.12"]
[EventType "k.o."]
[EventCountry "NET"]
[SourceTitle "playchess.com"]
[Source "ChessBase"]
[SourceQuality "1"]
[TimeControl "600+2"]

1. d4 {[%emt 0:00:02]} Nf6 {[%emt 0:00:03]} 2. c4 {[%emt 0:00:02]} e6 {[%emt 0:00:01]} 3. Nf3 {[%emt 0:00:00]} d5 {[%emt 0:00:00]} 4. Nc3 {[%emt 0:00:01]} c5 {[%emt 0:00:01]} 5. cxd5 {[%emt 0:00:04]} Nxd5 {[%emt 0:00:01]} 6. e4 {[%emt 0:00:01]} Nxc3 {[%emt 0:00:01]} 7. bxc3 {[%emt 0:00:00]} cxd4 {[%emt 0:00:00]} 8. cxd4 {[%emt 0:00:00]} Bb4+ {[%emt 0:00:01]} 9. Bd2 {[%emt 0:00:01]} Bxd2+ {[%emt 0:00:00]} 10. Qxd2 {[%emt 0:00:00]} O-O {[%emt 0:00:01]} 11. Rd1 {[%emt 0:00:03]} Bd7 {[%emt 0:00:11]} 12. Be2 {[%emt 0:01:44]} Ba4 {[%emt 0:00:04]} 13. Rc1 {[%emt 0:00:22]} Bc6 {[%emt 0:00:09]} 14. Bd3 {[%emt 0:00:23]} Nd7 {[%emt 0:00:06]} 15. O-O {[%emt 0:00:04]} Nf6 {[%emt 0:00:41]} 16. Qe3 {[%emt 0:00:26]} Qe7 {[%emt 0:00:44]} 17. Ne5 {[%emt 0:00:06]} Rfc8 {[%emt 0:00:24]} 18. Nxc6 {[%emt 0:01:12]} Rxc6 {[%emt 0:00:02]} 19. Rxc6 {[%emt 0:00:02]} bxc6 {[%emt 0:00:00]} 20. Rc1 {[%emt 0:00:03]} Rc8 {[%emt 0:00:13]} 21. h3 {[%emt 0:00:06]} g6 {[%emt 0:00:06]} 22. Be2 {[%emt 0:01:01]} Nd7 {[%emt 0:00:08]} 23. Bb5 {[%emt 0:01:27]} Qd6 {[%emt 0:00:41]} 24. Qc3 {[%emt 0:00:09]} Nb8 {[%emt 0:01:19]} 25. g3 {[%emt 0:01:00]} Rd8 {[%emt 0:00:10]} 26. Bxc6 {[%emt 0:00:22]} Nxc6 {[%emt 0:00:12]} 27. Qxc6 {[%emt 0:00:00]} Qxd4 {[%emt 0:00:01]} 28. Kg2 {[%emt 0:00:09]} Kg7 {[%emt 0:00:25]} 29. Qc4 {[%emt 0:00:44]} Qe5 {[%emt 0:00:13]} 30. Qc3 {[%emt 0:00:18]} Rd4 {[%emt 0:00:33]} 31. Re1 {[%emt 0:00:01]} Rd5 {[%emt 0:00:20]} 32. Qxe5+ {[%emt 0:00:35]} Rxe5 {[%emt 0:00:00]} 33. Re3 {[%emt 0:00:02]} Ra5 {[%emt 0:00:09]} 34. a3 {[%emt 0:00:00]} g5 {[%emt 0:00:05]} 35. f4 {[%emt 0:00:02]} Kg6 {[%emt 0:00:14]} 36. Rc3 {[%emt 0:00:13]} h5 {[%emt 0:00:07]} 37. h4 {[%emt 0:00:01]} g4 {[%emt 0:00:07]} 38. Kf2 {[%emt 0:00:00]} Rb5 {[%emt 0:00:01]} 39. Ke3 {[%emt 0:00:04]} a5 {[%emt 0:00:07]} 40. Kd4 {[%emt 0:00:04]} a4 {[%emt 0:00:12]} 41. Kc4 {[%emt 0:00:04]} Rb2 {[%emt 0:00:02]} 42. Kd4 {[%emt 0:00:02]} Kf6 {[%emt 0:00:03]} 43. Kc4 {[%emt 0:00:10]} Ke7 {[%emt 0:00:18]} 44. Kd4 {[%emt 0:00:02]} Kf6 {[%emt 0:00:25]} 45. Kc4 {[%emt 0:00:02]} Rb1 {[%emt 0:00:01]} 46. Rd3 {[%emt 0:00:05]} Ke7 {[%emt 0:00:07]} 47. Kd4 {[%emt 0:00:03]} Rc1 {[%emt 0:00:38]} 48. Rc3 {[%emt 0:00:06]} Rd1+ {[%emt 0:00:06]} 49. Rd3 {[%emt 0:00:02]} Rb1 {[%emt 0:00:22]} 50. Rc3 {[%emt 0:00:03]} Rb2 {[%emt 0:00:14]} 51. Rd3 {[%emt 0:00:02]} Kf6 {[%emt 0:00:08]} 52. Kc4 {[%emt 0:00:01]} Rb1 {[%emt 0:00:02]} 53. Rc3 {[%emt 0:00:02]} e5 {[%emt 0:00:10]} 54. f5 {[%emt 0:00:04]} Re1 {[%emt 0:00:08]} 55. Kd3 {[%emt 0:00:02]} Rg1 {[%emt 0:00:04]} 56. Kc4 {[%emt 0:00:05]} Re1 {[%emt 0:00:04]} 57. Kd3 {[%emt 0:00:01]} Kg7 {[%emt 0:00:02]} 58. Rc5 {[%emt 0:00:05]} Rg1 {[%emt 0:00:04]} 59. Rxe5 {[%emt 0:00:01]} Rxg3+ {[%emt 0:00:01]} 60. Ke2 {[%emt 0:00:01]} Rxa3 {[%emt 0:00:00]} 61. Ra5 {[%emt 0:00:01]} Kf6 {[%emt 0:00:02]} 62. Kf2 {[%emt 0:00:01]} Rf3+ {[%emt 0:00:01]} 63. Kg2 {[%emt 0:00:01]} a3 {[%emt 0:00:01]} 64. Rb5 {[%emt 0:00:04]} Re3 {[%emt 0:00:01]} 65. Ra5 {[%emt 0:00:01]} Rxe4 {[%emt 0:00:06]} 66. Rxa3 {[%emt 0:00:00]} Re5 {[%emt 0:00:01]} 67. Ra6+ {[%emt 0:00:07]} Kxf5 {[%emt 0:00:04]} 68. Rh6 {[%emt 0:00:01]} Ke4 {[%emt 0:00:08]} 69. Rf6 {[%emt 0:00:01]} Rf5 {[%emt 0:00:00]} 70. Ra6 {[%emt 0:00:03]} Kf4 {[%emt 0:00:02]} 71. Ra4+ {[%emt 0:00:02]} Ke5 {[%emt 0:00:01]} 72. Ra5+ {[%emt 0:00:01]} Kf6 {[%emt 0:00:01]} 73. Ra6+ {[%emt 0:00:01]} Kg7 {[%emt 0:00:00]} 74. Ra3 {[%emt 0:00:01]} Rc5 {[%emt 0:00:02]} 75. Ra7 {[%emt 0:00:02]} Kg6 {[%emt 0:00:01]} 76. Ra8 {[%emt 0:00:05]} Rc2+ {[%emt 0:00:01]} 77. Kg3 {[%emt 0:00:01]} Rc3+ {[%emt 0:00:01]} 78. Kf4 {[%emt 0:00:01]} Rf3+ {[%emt 0:00:01]} 79. Ke4 {[%emt 0:00:03]} Rh3 {[%emt 0:00:03]} 80. Rg8+ {[%emt 0:00:03]} Kf6 {[%emt 0:00:00]} 81. Kf4 {[%emt 0:00:03]} Rxh4 {[%emt 0:00:02]} 82. Ra8 {[%emt 0:00:03]} Rh1 {[%emt 0:00:02]} 83. Ra6+ {[%emt 0:00:01]} Kg7 {[%emt 0:00:01]} 84. Kg5 {[%emt 0:00:01]} g3 {[%emt 0:00:02]} 0-1

[Event "CCT Chessable Masters D-III 2024"]
[Site "Online"]
[Date "2024.02.06"]
[Round "7"]
[White "Sarana, Alexey"]
[Black "Grischuk, Alexander"]
[Result "1-0"]
[ECO "D35"]
[WhiteElo "2695"]
[BlackElo "2732"]
[Annotator "TA"]
[PlyCount "149"]
[EventDate "2024.01.12"]
[EventType "k.o."]
[EventCountry "NET"]
[SourceTitle "playchess.com"]
[Source "ChessBase"]
[SourceQuality "1"]
[TimeControl "600+2"]

{[%evp 73,149,0,0,-6,60,65,86,72,120,112,134,134,137,138,192,139,138,114,198,168,172,168,206,191,188,194,218,172,248,211,400,398,416,372,579,574,940,640,596,578,900,900,740,762,847,772,807,805,945,956,957,913,929,414,997,1123,1130,0,1068,1156,1364,1359,652,1064,1258,983,1021,716,1448,409,1135,1448,1533,1387,1510,1259,2069,1964]} 1. d4 {[%emt 0:00:02]} d5 {[%emt 0:00:05]} 2. c4 {[%emt 0:00:01]} e6 {[%emt 0:00:01]} 3. Nc3 {[%emt 0:00:01]} c6 {[%emt 0:00:01]} 4. cxd5 {[%emt 0:00:08]} exd5 {[%emt 0:00:01]} 5. Bf4 {[%emt 0:00:01]} Nf6 {[%emt 0:00:44]} 6. e3 {[%emt 0:00:01]} Bf5 {[%emt 0:00:08]} 7. Bd3 {[%emt 0:00:04]} Bxd3 {[%emt 0:00:05]} 8. Qxd3 {[%emt 0:00:00]} Be7 {[%emt 0:00:18]} 9. Nf3 {[%emt 0:00:02]} Nbd7 {[%emt 0:00:05]} 10. h3 {[%emt 0:00:02]} O-O {[%emt 0:00:04]} 11. O-O {[%emt 0:00:01]} Re8 {[%emt 0:00:06]} 12. Rab1 {[%emt 0:00:02]} a5 {[%emt 0:00:02]} 13. Ne5 {[%emt 0:00:06]} h6 {[%emt 0:00:23]} 14. Rfe1 {[%emt 0:00:21]} Bf8 {[%emt 0:00:27]} 15. Na4 {[%emt 0:00:16]} Nxe5 {[%emt 0:00:14]} 16. Bxe5 {[%emt 0:00:01]} Ne4 {[%emt 0:01:32]} 17. Nc3 {[%emt 0:00:03]} Bb4 {[%emt 0:00:16]} 18. Re2 {[%emt 0:00:04]} Bxc3 {[%emt 0:00:39]} 19. bxc3 {[%emt 0:00:01]} b5 {[%emt 0:00:01]} 20. f3 {[%emt 0:00:03]} Nc5 {[%emt 0:00:31]} 21. Qf5 {[%emt 0:01:23]} Na4 {[%emt 0:00:34]} 22. Rc1 {[%emt 0:00:01]} Qg5 {[%emt 0:00:28]} 23. Qd3 {[%emt 0:00:26]} Nb6 {[%emt 0:00:19]} 24. Bf4 {[%emt 0:00:08]} Qf6 {[%emt 0:00:03]} 25. Be5 {[%emt 0:00:01]} Qe7 {[%emt 0:00:10]} 26. e4 {[%emt 0:00:15]} Nc4 {[%emt 0:00:31]} 27. Bh2 {[%emt 0:00:02]} Qa3 {[%emt 0:00:17]} 28. Rb1 {[%emt 0:00:30]} b4 {[%emt 0:00:01]} 29. Rb3 {[%emt 0:00:16]} Qc1+ {[%emt 0:00:07]} 30. Kf2 {[%emt 0:00:00]} bxc3 {[%emt 0:01:18]} 31. Rxc3 {[%emt 0:00:01]} Qg5 {[%emt 0:00:01]} 32. Rb3 {[%emt 0:00:18]} a4 {[%emt 0:00:05]} 33. Rb7 {[%emt 0:00:06]} a3 {[%emt 0:00:08]} 34. Bg3 {[%emt 0:00:17]} Qg6 {[%emt 0:00:08]} 35. Bh2 {[%emt 0:00:40]} Re6 {[%emt 0:00:08]} 36. Qc2 {[%emt 0:00:14]} Rae8 {[%emt 0:00:02]} 37. e5 {[%emt 0:00:04]} Qh5 {[%emt 0:00:18]} 38. f4 {[%emt 0:00:13]} f5 {[%emt 0:00:18]} (38... Nd6 $11 39. Rb3 Ne4+ 40. Kg1 c5 41. Rxe4 (41. dxc5 Rc6 $17) 41... dxe4) 39. Rb3 $14 {[%emt 0:00:29]} Ra8 {[%emt 0:00:17]} 40. Kg1 {[%emt 0:00:07]} Kh8 {[%emt 0:00:03]} (40... Ree8 $142) 41. Bg3 $16 {[%emt 0:00:02]} Qf7 {[%emt 0:00:07]} 42. Be1 {[%emt 0:00:08]} Qh5 {[%emt 0:00:14]} 43. Bb4 {[%emt 0:00:12]} Rg6 {[%emt 0:00:04]} (43... Ree8 $16 44. Kh2 Reb8) 44. Kh2 {[%emt 0:00:13]} (44. Rf2 $18) 44... Re6 $16 {[%emt 0:00:04]} 45. Bc5 {[%emt 0:00:08]} Qf7 {[%emt 0:00:01]} (45... Ree8 $16 46. e6 Qg6) 46. Rf2 {[%emt 0:00:02]} Ree8 {[%emt 0:00:01]} 47. Rff3 {[%emt 0:00:01]} Reb8 {[%emt 0:00:02] [#]} 48. Rxb8+ $1 {[%emt 0:00:07]} (48. Bxa3 Rxb3 49. axb3 Nxa3 $15) 48... Rxb8 {[%emt 0:00:00]} 49. Bxa3 {[%emt 0:00:02]} Qe6 {[%emt 0:00:04]} 50. Bc1 {[%emt 0:00:02]} g6 {[%emt 0:00:01]} (50... Rc8 $142 51. Rb3 c5 52. dxc5 Rxc5) 51. a4 $18 {[%emt 0:00:02]} Kh7 $2 {[%emt 0:00:01]} (51... Qe7 52. Rb3 Rg8) 52. Rb3 $18 {[%emt 0:00:04]} Ra8 {[%emt 0:00:03]} 53. Rb7+ {[%emt 0:00:01]} Kh8 {[%emt 0:00:01]} (53... Kg8 {might work better.} 54. Qc3 Qc8) 54. Qb1 $18 {[%emt 0:00:04]} Kg8 {[%emt 0:00:03]} 55. Qb4 {[%emt 0:00:02]} Qe8 {[%emt 0:00:04]} 56. a5 {[%emt 0:00:12]} Nxa5 {[%emt 0:00:01]} 57. Re7 {[%emt 0:00:01]} Qd8 {[%emt 0:00:02]} 58. Re6 {[%emt 0:00:08]} Kf7 {[%emt 0:00:00]} 59. Rf6+ {[%emt 0:00:01]} Kg7 {[%emt 0:00:01]} 60. Bd2 {[%emt 0:00:06]} Qe8 {[%emt 0:00:04]} 61. Qd6 {[%emt 0:00:17]} Nc4 {[%emt 0:00:02]} 62. Qc7+ {[%emt 0:00:01]} (62. Qxc6 Qxc6 (62... Nxd2 63. Qb7+ Kh8 64. Rxg6 $11) 63. Rxc6 Nxd2 $19) 62... Kg8 {[%emt 0:00:01]} 63. Bb4 {[%emt 0:00:00]} (63. Be1 $142) 63... Rc8 $18 {[%emt 0:00:03]} 64. Qa7 {[%emt 0:00:03]} Ra8 {[%emt 0:00:01]} 65. Qc7 {[%emt 0:00:04]} Rc8 $1 {[%emt 0:00:01]} 66. Rxg6+ {[%emt 0:00:27]} Qxg6 {[%emt 0:00:04]} 67. Qxc8+ {[%emt 0:00:00]} Kh7 {[%emt 0:00:03]} 68. Qd7+ {[%emt 0:00:01]} Kg8 {[%emt 0:00:01]} 69. Qd8+ {[%emt 0:00:05]} Kh7 {[%emt 0:00:01]} 70. Qe7+ {[%emt 0:00:00]} Qg7 {[%emt 0:00:03]} 71. Qxg7+ {[%emt 0:00:16]} Kxg7 {[%emt 0:00:00]} 72. g4 {[%emt 0:00:01]} Kg6 {[%emt 0:00:06]} 73. Kg3 {[%emt 0:00:05]} Ne3 {[%emt 0:00:03]} 74. Kf3 {[%emt 0:00:08]} Nc4 {[%emt 0:00:02]} 75. e6 {[%emt 0:00:05]} 1-0